bitfinex/quotes_ETHUSD_20250730
["timestamp","ask_amount","ask_price","bid_price","bid_amount"]
[1753888645898,0.042,3800.9,3800.8,1.8739935]
[1753888646095,0.042,3800.9,3800.8,1.3982935]
[1753888646352,0.042,3800.9,3800.4,0.4757]
[1753888646545,0.042,3800.9,3800.5,2.63117699]
[1753888646842,0.042,3800.9,3800.5,0.4757]
[1753888646996,0.042,3800.9,3800.5,3.10691702]
[1753888647201,0.042,3800.9,3800.6,8.69157287]
[1753888647399,0.042,3800.9,3800.8,2.63102504]
[1753888647805,0.042,3800.9,3800.8,2.65733529]
[1753888648039,0.042,3800.9,3800.8,3.60723529]
[1753888648203,0.042,3800.9,3800.8,3.58092504]
[1753888648853,0.042,3800.9,3800.8,4.39273529]
[1753888649142,0.042,3800.9,3800.8,2.56424655]
[1753888649443,0.042,3800.9,3800.8,3.89222504]
[1753888650245,0.042,3800.9,3800.8,0.7855]
[1753888650571,0.042,3800.9,3800.4,3.4167518]
[1753888650775,0.042,3800.9,3800.4,4.9675]
[1753888650930,0.042,3800.9,3800.8,2.63102504]
[1753888651270,0.042,3800.9,3800.8,4.59884073]
[1753888651476,0.042,3800.9,3800.8,9.25654073]
[1753888651834,0.042,3800.9,3800.8,9.73074073]
[1753888652061,0.042,3800.9,3800.8,9.86194073]
[1753888652450,0.002,3801.3,3801.2,3.41624818]
[1753888652640,0.002,3801.3,3801.2,13.81303915]
[1753888652846,0.002,3801.3,3801.2,14.86783167]
[1753888653735,0.002,3801.8,3801.7,8.98956527]
[1753888653931,0.002,3801.8,3801.7,13.17056527]
[1753888654136,0.002,3801.8,3801.7,14.25166527]
[1753888654336,0.002,3801.8,3801.7,15.93988027]
[1753888654582,0.04,3801.9,3801.8,2.630333]
[1753888654779,0.002,3802.1,3802.0,2.63019463]
[1753888655078,0.002,3802.1,3802.0,6.94239463]
[1753888655277,0.002,3802.1,3802.0,7.41809463]
[1753888655462,0.002,3802.1,3802.0,9.7491452]
[1753888655837,0.002,3802.1,3802.0,10.5346452]
[1753888656077,0.002,3802.1,3802.0,11.0846452]
[1753888656239,0.002,3802.1,3802.0,10.0604452]
[1753888656442,0.002,3802.1,3802.0,15.64520829]
[1753888656738,0.002,3802.1,3802.0,15.64420829]
[1753888657560,0.002,3802.1,3802.0,11.46420829]
[1753888657767,0.002,3802.1,3802.0,2.77355057]
[1753888658005,0.002,3802.1,3802.0,0.1312]
[1753888658006,0.9168,3802.1,3802.0,0.1312]
[1753888658711,0.002,3802.1,3802.0,0.1312]
[1753888658857,0.002,3802.1,3802.0,5.71596309]
[1753888659058,0.002,3802.1,3802.0,14.26055772]
[1753888659310,0.002,3802.1,3802.0,15.47544433]
[1753888660398,0.002,3802.1,3802.0,10.82074433]
[1753888660611,0.002,3802.1,3802.0,2.60578661]
[1753888660810,0.4816,3802.1,3802.0,4.3102]
[1753888661025,0.002,3802.1,3802.0,4.3102]
[1753888661324,0.002,3802.1,3802.0,12.52515772]
[1753888661618,0.002,3802.1,3802.0,13.00085772]
[1753888661977,0.002,3802.1,3802.0,12.52515772]
[1753888662174,0.002,3802.1,3802.0,7.23150668]
[1753888662375,0.9168,3802.1,3802.0,4.3092]
[1753888663126,0.002,3802.1,3802.0,4.3092]
[1753888663429,0.002,3802.1,3802.0,13.02615966]
[1753888663626,0.002,3802.1,3802.0,12.99985772]
[1753888663781,0.002,3802.1,3802.0,12.52415772]
[1753888663980,0.002,3802.1,3802.0,14.03960359]
[1753888664885,0.9168,3802.1,3802.0,0.1312]
[1753888666065,1.7421,3802.1,3801.7,0.1312]
[1753888666236,0.8273,3802.1,3801.5,9.76176309]
[1753888666540,0.8273,3802.1,3802.0,0.1312]
[1753888666836,1.7175,3802.1,3802.0,0.1312]
[1753888667243,1.7175,3802.1,3801.3,4.177]
[1753888667445,0.002,3802.1,3801.6,8.21522495]
[1753888667657,0.002,3802.1,3801.8,2.6303143]
[1753888667805,0.8902,3802.0,3801.7,5.5412725]
[1753888668149,0.4326,3801.9,3801.6,2.63047066]
[1753888668304,0.002,3802.1,3802.0,2.63019463]
[1753888668501,0.002,3802.1,3802.0,0.02630194]
[1753888668712,0.8922,3802.1,3801.4,4.9625]
[1753888668930,0.8922,3802.1,3801.5,0.75931757]
[1753888669351,0.8902,3802.0,3801.0,6.34246309]
[1753888669566,0.7802,3802.1,3801.2,4.177]
[1753888669845,0.8902,3801.9,3801.2,4.177]
[1753888670000,0.8902,3801.9,3801.3,2.63067897]
[1753888670198,0.8902,3801.9,3801.2,2.63072751]
[1753888670402,0.4326,3801.9,3801.3,0.91811022]
[1753888670649,0.4326,3801.9,3800.6,0.7577]
[1753888670650,0.4576,3801.8,3800.6,0.7577]
[1753888670804,0.4576,3801.8,3800.1,0.5009]
[1753888670805,0.7782,3801.6,3800.1,0.04]
[1753888671004,0.7782,3801.4,3800.2,2.63140469]
[1753888671423,0.8902,3801.3,3800.2,2.63140469]
[1753888671620,0.8902,3801.2,3800.8,0.001]
[1753888672142,0.8902,3801.1,3800.8,0.001]
[1753888672500,0.8902,3801.0,3800.8,0.001]
[1753888672968,0.7782,3801.4,3800.8,0.001]
[1753888673116,0.8902,3800.9,3800.8,0.001]
[1753888673965,1.692,3800.9,3800.8,0.001]
[1753888674127,1.8612,3800.9,3800.8,0.001]
[1753888675368,1.692,3800.9,3800.8,0.001]
[1753888676819,1.93752098,3800.9,3800.8,0.001]
[1753888677021,1.692,3800.9,3800.8,0.001]
[1753888677768,0.8277,3801.4,3800.8,0.001]
[1753888677922,0.8902,3800.9,3800.8,0.001]
[1753888678322,1.6855,3800.9,3800.8,0.001]
[1753888678972,3.0,3801.9,3800.8,0.001]
[1753888678973,1.2529,3801.3,3800.8,0.001]
[1753888679258,0.7953,3801.3,3801.0,0.1312]
[1753888679464,0.7953,3801.3,3800.8,0.001]
[1753888679629,0.7953,3801.3,3801.2,0.1312]
[1753888680033,1.2529,3801.3,3801.2,0.1312]
[1753888680245,1.6855,3801.3,3801.2,0.1312]
[1753888680564,1.6855,3801.3,3801.0,0.1312]
[1753888680713,0.91690212,3801.2,3800.8,0.001]
[1753888680917,0.7953,3801.1,3800.8,0.001]
[1753888681120,0.1312,3800.9,3800.8,0.001]
[1753888681323,0.002,3802.1,3800.9,0.465]
[1753888681561,0.002,3802.1,3801.5,5.58476309]
[1753888681774,0.002,3802.1,3801.2,2.6307458]
[1753888681974,0.002,3802.1,3801.0,9.62043936]
[1753888681975,1.238,3802.0,3801.0,0.94389881]
[1753888682323,0.4326,3801.9,3801.0,0.94389881]
[1753888682524,0.4326,3801.9,3800.8,0.001]
[1753888682525,0.7804,3801.7,3800.8,0.001]
[1753888682755,0.7804,3801.5,3800.8,0.001]
[1753888682970,0.7804,3801.3,3800.8,0.001]
[1753888683176,0.27206643,3801.4,3800.8,0.001]
[1753888683177,1.3304,3801.1,3800.8,0.001]
[1753888683507,0.55,3800.4,3800.1,0.04]
[1753888683661,4.3304,3800.2,3800.1,0.04]
[1753888684050,5.2206,3800.2,3800.1,0.04]
[1753888684446,35.2206,3800.2,3800.1,0.04]
[1753888685147,9.88836326,3800.2,3800.1,0.04]
[1753888685353,4.91598163,3800.2,3800.1,0.04]
[1753888685560,9.09298163,3800.2,3800.1,0.04]
[1753888685778,10.00205171,3800.2,3800.1,0.04]
[1753888686095,9.75689816,3800.2,3800.1,0.04]
[1753888686302,10.00194089,3800.2,3800.1,0.04]
[1753888686598,8.2024479,3800.2,3800.1,0.04]
[1753888686897,3.0,3800.2,3800.1,0.04]
[1753888688103,3.0,3800.8,3800.1,0.505]
[1753888688753,3.0,3800.8,3800.2,0.31628375]
[1753888689182,3.0,3800.8,3800.1,0.505]
[1753888689349,4.177,3800.9,3800.1,3.1628212]
[1753888689691,3.0,3800.8,3800.1,0.505]
[1753888690071,3.0,3800.8,3800.1,0.53131509]
[1753888690488,3.0,3800.8,3800.2,2.65775216]
[1753888690799,3.0,3800.8,3800.3,0.31627522]
[1753888691098,3.0,3800.8,3800.1,0.505]
[1753888691099,3.0,3800.8,3800.4,0.465]
[1753888691295,3.0,3800.8,3800.5,0.1312]
[1753888691603,3.8902,3800.8,3800.5,0.1312]
[1753888692091,3.4326,3800.8,3800.5,0.1312]
[1753888692291,0.7786,3800.6,3800.1,0.04]
[1753888692498,0.1312,3800.3,3800.1,0.04]
[1753888692705,4.177,3800.2,3800.1,0.04]
[1753888693267,8.09390212,3800.2,3800.1,0.04]
[1753888693472,8.0672,3800.2,3800.1,0.04]
[1753888694275,8.88704,3800.2,3800.1,0.04]
[1753888694473,9.66564,3800.2,3800.1,0.04]
[1753888694977,3.7786,3800.2,3800.1,0.04]
[1753888695200,7.177,3800.2,3800.1,0.04]
[1753888696517,4.177,3800.2,3800.1,0.04]
[1753888696868,8.1058,3800.2,3800.1,0.04]
[1753888697074,9.0156,3800.2,3800.1,0.04]
[1753888697275,5.74016,3800.2,3800.1,0.04]
[1753888697575,8.5475,3800.2,3800.1,0.04]
[1753888698271,9.0156,3800.2,3800.1,0.04]
[1753888700098,9.26142501,3800.2,3800.1,0.04]
[1753888700553,8.33262501,3800.2,3800.1,0.04]
[1753888700754,9.26142501,3800.2,3800.1,0.04]
[1753888701389,8.79332501,3800.2,3800.1,0.04]
[1753888701776,9.26142501,3800.2,3800.1,0.04]
[1753888702407,8.0868,3800.2,3800.1,0.04]
[1753888703714,7.3082,3800.2,3800.1,0.04]
[1753888704393,7.55423149,3800.2,3800.1,0.04]
[1753888705178,7.3082,3800.2,3800.1,0.04]
[1753888705781,3.1312,3800.2,3800.1,0.04]
[1753888705985,0.1312,3800.6,3800.1,0.4909]
[1753888706331,4.177,3800.5,3800.2,0.4509]
[1753888706511,0.1312,3800.7,3800.1,0.04]
[1753888706679,0.1312,3801.0,3800.3,0.4509]
[1753888707003,4.177,3801.2,3800.6,5.71596309]
[1753888707213,4.177,3801.2,3800.9,2.63092898]
[1753888707536,4.177,3801.2,3801.0,1.0493]
[1753888707678,4.177,3801.2,3801.0,0.1312]
[1753888707879,3.0,3801.7,3801.1,0.9181]
[1753888708130,3.1332,3801.9,3801.1,0.9181]
[1753888708131,3.0,3801.5,3801.1,0.9181]
[1753888708423,0.002,3801.9,3801.2,1.2187]
[1753888708587,4.179,3801.9,3801.6,0.1312]
[1753888708782,1.79020212,3801.8,3801.0,0.4509]
[1753888708993,4.79020212,3801.8,3801.4,0.1312]
[1753888709245,4.79020212,3801.8,3800.8,0.7678]
[1753888709246,3.9288,3801.7,3800.8,0.7678]
[1753888709376,3.0,3801.5,3800.5,0.7678]
[1753888709581,3.0,3801.5,3800.7,0.1312]
[1753888709582,0.1312,3801.3,3800.7,0.1312]
[1753888709780,3.8347,3801.1,3800.7,0.1312]
[1753888710027,0.1312,3800.8,3800.3,0.1312]
[1753888710182,5.1048,3800.7,3800.1,0.04]
[1753888710376,0.1312,3800.6,3800.1,0.1712]
[1753888710580,1.2618,3800.5,3800.1,0.1712]
[1753888710933,5.13150212,3800.4,3800.1,0.04]
[1753888711294,5.1048,3800.4,3800.1,0.04]
[1753888711610,0.02670212,3800.3,3800.1,0.04]
[1753888711812,5.1048,3800.4,3800.1,0.04]
[1753888712199,4.176,3800.4,3800.1,0.04]
[1753888712411,4.176,3800.4,3800.1,0.4909]
[1753888712588,4.176,3800.4,3800.2,0.4509]
[1753888712787,4.176,3800.5,3800.3,0.4509]
[1753888713011,4.176,3800.5,3800.3,0.1312]
[1753888714224,4.176,3800.5,3800.4,0.4509]
[1753888714435,4.176,3800.7,3800.4,0.9181]
[1753888714594,4.176,3800.7,3800.5,0.4509]
[1753888714793,4.176,3800.7,3800.6,0.5821]
[1753888715192,3.0,3801.1,3800.8,2.63096843]
[1753888715193,4.176,3801.1,3800.8,2.63096843]
[1753888715397,4.176,3801.1,3800.9,0.4509]
[1753888715711,0.002,3800.8,3800.7,3.41767516]
[1753888716095,0.002,3800.8,3800.7,3.99977516]
[1753888716433,0.002,3800.8,3800.7,2.67520708]
[1753888716606,0.002,3800.8,3800.7,5.77350135]
[1753888718930,0.002,3800.8,3800.7,4.85540135]
[1753888719936,0.002,3800.8,3800.7,0.9178]
[1753888720163,0.002,3800.8,3800.3,3.41795697]
[1753888720299,0.002,3800.8,3800.6,0.1312]
[1753888721055,0.002,3800.8,3800.6,0.5821]
[1753888721545,0.002,3800.8,3800.6,0.1312]
[1753888721913,0.002,3800.8,3800.7,0.75344962]
[1753888722112,0.002,3800.8,3800.7,3.38454389]
[1753888722307,0.002,3800.8,3800.7,0.72713868]
[1753888722546,0.002,3800.8,3800.7,0.47721094]
[1753888722747,0.002,3800.8,3800.7,0.4509]
[1753888722951,0.002,3800.8,3800.7,3.57550521]
[1753888723211,0.002,3800.8,3800.7,4.32579427]
[1753888724220,0.002,3800.8,3800.7,8.50079427]
[1753888724414,0.002,3800.8,3800.7,10.18822367]
[1753888726414,0.002,3800.8,3800.7,10.73822367]
[1753888726614,0.002,3801.6,3801.5,3.41714057]
[1753888727028,0.002,3801.6,3801.5,3.54834057]
[1753888727416,0.002,3801.6,3801.5,4.03944057]
[1753888727621,0.002,3801.6,3801.5,5.70862858]
[1753888727959,0.002,3801.6,3801.5,5.68232318]
[1753888728462,0.002,3801.6,3801.5,5.19122318]
[1753888728765,0.002,3801.6,3801.5,3.54834057]
[1753888729147,0.002,3801.6,3801.5,0.1312]
[1753888729769,0.9311,3801.6,3801.5,0.1312]
[1753888730074,0.9311,3801.6,3801.0,2.63086383]
[1753888730075,0.9311,3801.6,3801.0,2.63084462]
[1753888730242,0.9311,3801.6,3801.2,0.1312]
[1753888730587,0.002,3801.6,3801.5,0.1312]
[1753888731186,0.9311,3801.6,3801.0,4.173]
[1753888731478,0.9291,3801.5,3801.3,0.1312]
[1753888731974,0.4391,3801.4,3801.3,0.1312]
[1753888732889,0.002,3801.6,3801.3,0.1312]
[1753888733035,0.9311,3801.6,3801.3,0.1312]
[1753888733235,0.002,3801.6,3800.9,0.4911]
[1753888733534,0.002,3801.6,3801.5,0.1312]
[1753888733781,0.002,3801.6,3801.5,2.76174057]
[1753888734080,0.002,3801.6,3801.5,4.55897683]
[1753888734287,0.002,3801.6,3801.5,1.43733626]
[1753888734579,0.002,3801.6,3801.5,4.06787683]
[1753888736076,0.002,3801.6,3801.5,1.43733626]
[1753888736284,0.002,3801.6,3801.5,0.67043626]
[1753888736574,0.002,3801.6,3801.5,3.30097683]
[1753888737079,0.002,3801.6,3801.5,0.67043626]
[1753888737661,0.002,3801.6,3801.5,0.1312]
[1753888738189,0.4411,3801.6,3801.5,0.1312]
[1753888738681,0.9311,3801.6,3801.5,0.1312]
[1753888740086,0.002,3801.6,3801.5,0.1312]
[1753888740453,0.9311,3801.6,3801.5,0.1312]
[1753888741497,0.002,3801.6,3801.5,0.1312]
[1753888741890,0.002,3801.6,3801.5,2.76174057]
[1753888742188,0.002,3801.6,3801.5,0.1312]
[1753888742709,0.002,3801.6,3801.5,4.57809037]
[1753888743075,0.002,3801.6,3801.5,3.30099037]
[1753888743277,0.002,3801.6,3801.5,3.79209037]
[1753888745026,0.002,3801.6,3801.5,4.27109577]
[1753888745174,0.002,3801.6,3801.5,3.81839577]
[1753888745512,0.002,3801.6,3801.5,0.1312]
[1753888745717,0.9311,3801.6,3801.5,0.1312]
[1753888746086,0.4411,3801.6,3801.5,0.1312]
[1753888746292,0.9311,3801.6,3801.5,0.1312]
[1753888746614,0.9311,3801.6,3801.2,0.1312]
[1753888746820,0.9311,3801.6,3800.7,2.6310504]
[1753888746821,0.7902,3801.4,3800.7,4.171]
[1753888746975,0.9291,3801.3,3801.0,0.1312]
[1753888747887,0.002,3801.6,3801.1,0.4911]
[1753888748116,0.002,3801.6,3801.2,0.6223]
[1753888748322,0.49,3801.5,3801.4,0.1312]
[1753888748476,1.702,3801.5,3801.1,0.1312]
[1753888748681,0.9291,3801.4,3801.1,0.1312]
[1753888749111,0.9291,3801.3,3801.1,0.1312]
[1753888749508,0.4391,3801.2,3801.1,0.1312]
[1753888749704,0.9291,3801.2,3801.1,0.1312]
[1753888750621,0.7729,3801.5,3801.1,0.1312]
[1753888750778,1.702,3801.5,3801.1,0.1312]
[1753888750982,0.7729,3801.5,3801.1,0.1312]
[1753888751180,0.002,3801.6,3801.4,0.1312]
[1753888751882,0.002,3801.6,3801.4,0.6223]
[1753888752115,0.002,3801.6,3801.4,0.1312]
[1753888758527,0.9402,3801.5,3801.4,0.1312]
[1753888758738,0.4678,3801.5,3801.4,0.1312]
[1753888758944,0.002,3801.6,3801.4,0.1312]
[1753888759153,1.7085,3801.5,3800.6,4.169]
[1753888759360,1.7085,3801.5,3801.1,0.1312]
[1753888759502,0.4724,3801.4,3801.1,0.1312]
[1753888759705,0.002,3801.6,3801.2,2.63069785]
[1753888760047,0.002,3801.6,3801.3,0.1312]
[1753888760249,0.002,3801.6,3801.3,0.4861]
[1753888760403,0.002,3801.6,3801.5,0.1312]
[1753888760808,0.002,3801.6,3800.9,3.1170091]
[1753888761039,0.002,3801.6,3801.4,0.1312]
[1753888761220,0.4724,3801.5,3800.8,0.001]
[1753888761441,0.8082,3801.4,3801.3,0.1312]
[1753888761954,1.7484,3801.4,3801.3,0.1312]
[1753888762652,0.002,3801.6,3801.3,0.1312]
[1753888763030,0.9422,3801.6,3801.3,0.1312]
[1753888763630,0.002,3801.6,3801.3,0.1312]
[1753888763831,0.9402,3801.5,3801.3,0.1312]
[1753888764032,0.4678,3801.4,3801.3,0.1312]
[1753888764474,0.002,3801.6,3801.3,0.1312]
[1753888764633,0.002,3801.6,3801.4,0.4861]
[1753888764835,0.002,3801.6,3800.8,5.58576309]
[1753888764836,0.002,3801.6,3801.5,0.1312]
[1753888765075,0.002,3801.6,3801.3,0.1312]
[1753888765287,0.8118,3801.5,3800.8,0.001]
[1753888765576,0.8118,3801.3,3800.8,0.001]
[1753888765803,3.0,3801.1,3800.8,0.001]
[1753888766007,0.9402,3801.0,3800.8,0.001]
[1753888766609,0.9402,3800.9,3800.8,0.001]
[1753888766910,5.18232616,3801.2,3800.8,0.001]
[1753888766911,0.9402,3801.0,3800.8,0.001]
[1753888767404,1.01432616,3801.2,3800.8,0.001]
[1753888767405,0.9402,3800.9,3800.8,0.001]
[1753888768480,0.8118,3801.2,3800.8,0.001]
[1753888768775,3.8118,3801.5,3800.8,0.75031416]
[1753888768988,0.24627203,3801.4,3800.8,0.75031416]
[1753888769306,3.0,3801.5,3800.8,0.75031416]
[1753888769514,3.0,3801.5,3800.9,0.4861]
[1753888769663,3.0,3801.5,3801.1,2.63080696]
[1753888769863,3.0,3801.5,3801.2,0.31432165]
[1753888770410,0.002,3801.6,3801.3,0.4861]
[1753888770704,0.002,3801.6,3801.4,2.63056235]
[1753888771014,0.002,3801.6,3801.4,3.11666235]
[1753888771203,0.002,3801.6,3801.3,3.41716494]
[1753888771405,0.002,3801.6,3801.5,0.4861]
[1753888772205,0.002,3801.6,3801.3,3.41716145]
[1753888772517,0.002,3801.6,3801.4,3.11666549]
[1753888772668,0.002,3801.6,3801.4,0.4861]
[1753888772866,0.002,3801.6,3801.3,1.236]
[1753888773078,0.002,3801.6,3801.5,3.11664057]
[1753888773332,0.002,3801.6,3801.5,3.14294597]
[1753888773462,0.002,3801.6,3801.5,3.11664057]
[1753888773662,0.002,3801.6,3801.5,3.59244597]
[1753888773888,0.002,3801.6,3801.5,3.56614057]
[1753888774094,0.002,3801.6,3801.5,4.81052342]
[1753888774309,0.002,3801.6,3801.5,4.36102342]
[1753888774830,0.002,3801.6,3801.5,4.81052342]
[1753888775198,0.002,3801.6,3801.5,4.94172342]
[1753888775924,0.002,3801.6,3801.5,4.91541802]
[1753888777317,0.002,3801.6,3801.5,5.51527745]
[1753888777521,0.002,3801.6,3801.5,4.2972]
[1753888777832,0.9422,3801.6,3801.5,0.1312]
[1753888778641,0.8072,3801.5,3801.3,0.1312]
[1753888779124,0.002,3801.6,3801.3,0.6173]
[1753888779535,0.002,3801.6,3801.3,0.4861]
[1753888779735,0.002,3801.6,3801.5,0.1312]
[1753888780590,0.002,3801.6,3801.5,0.6173]
[1753888780790,0.002,3801.6,3801.5,0.1312]
[1753888781307,0.002,3801.6,3801.5,0.6173]
[1753888781725,0.002,3801.6,3801.5,3.24784057]
[1753888781931,0.002,3801.6,3801.5,4.35714683]
[1753888782297,0.002,3801.6,3801.5,4.80664683]
[1753888783040,0.002,3801.6,3801.5,5.58304683]
[1753888783239,0.002,3801.6,3801.5,5.55674143]
[1753888784298,0.002,3801.6,3801.5,9.72174143]
[1753888784494,0.002,3801.9,3801.8,3.400533]
[1753888784699,0.002,3801.9,3801.8,16.85679942]
[1753888785039,0.002,3802.0,3801.9,6.96676381]
[1753888785243,0.002,3802.0,3801.9,7.90236381]
[1753888786740,0.002,3802.0,3801.9,8.10434568]
[1753888786938,0.002,3802.0,3801.9,10.55237544]
[1753888787544,0.1712,3803.9,3802.1,0.77]
[1753888787751,1.7505,3803.7,3802.8,8.2144044]
[1753888787950,0.9395,3803.4,3802.8,12.3774044]
[1753888788102,0.9395,3803.4,3802.8,12.5086044]
[1753888788304,0.9395,3803.4,3802.8,14.07198734]
[1753888789815,0.9395,3803.4,3802.8,15.33748734]
[1753888790428,0.9395,3803.4,3802.8,9.75272425]
[1753888790631,0.811,3803.7,3802.8,9.75272425]
[1753888790950,0.811,3803.7,3803.6,2.62908823]
[1753888790951,0.002,3803.7,3803.6,2.62908823]
[1753888791098,0.002,3803.7,3803.6,7.3939141]
[1753888791445,0.9415,3803.7,3803.6,4.89602587]
[1753888791650,0.9415,3803.7,3803.6,0.1312]
[1753888791942,0.002,3803.7,3803.6,2.76028823]
[1753888792129,0.002,3803.7,3803.6,0.1312]
[1753888792440,1.7618,3803.7,3803.1,4.162]
[1753888792644,0.9395,3803.6,3803.4,0.1312]
[1753888792943,1.1328,3803.6,3803.4,0.1312]
[1753888793119,0.9395,3803.5,3803.4,0.1312]
[1753888793644,0.9395,3803.5,3802.3,0.7865]
[1753888793645,0.8203,3803.4,3803.0,0.1312]
[1753888793803,1.7598,3803.4,3803.0,0.1312]
[1753888794000,0.9395,3803.3,3803.0,0.1312]
[1753888794437,0.9395,3803.2,3803.0,0.1312]
[1753888794841,0.9395,3803.1,3803.0,0.1312]
[1753888795949,0.8203,3803.4,3803.0,0.1312]
[1753888796253,0.8203,3803.7,3803.3,0.1312]
[1753888796806,0.9395,3803.6,3803.3,0.1312]
[1753888797201,0.9395,3803.5,3803.3,0.1312]
[1753888797401,0.9395,3803.5,3802.4,0.7729]
[1753888797619,0.9395,3803.4,3803.2,0.1312]
[1753888797838,0.9395,3803.3,3803.2,0.1312]
[1753888798645,1.7563,3803.3,3802.5,6.78980521]
[1753888798924,1.7563,3803.3,3803.0,0.1312]
[1753888799119,0.9395,3803.2,3803.0,0.1312]
[1753888799603,0.4477,3803.1,3803.0,0.1312]
[1753888800041,0.9395,3803.1,3803.0,0.1312]
[1753888800419,0.9395,3803.1,3802.2,2.63000735]
[1753888800743,0.9395,3803.0,3802.8,0.1312]
[1753888801048,0.8168,3803.3,3802.4,8.71014365]
[1753888801344,0.8168,3803.3,3803.2,0.1312]
[1753888801819,1.7563,3803.3,3803.2,0.1312]
[1753888803446,0.8005,3803.2,3802.7,0.1312]
[1753888803748,1.92712,3803.2,3802.7,0.1312]
[1753888804046,0.7924,3803.0,3802.7,0.1312]
[1753888804520,1.2401,3803.0,3802.7,0.1312]
[1753888804744,0.9395,3802.9,3802.7,0.1312]
[1753888805278,0.7924,3803.0,3802.7,0.1312]
[1753888805442,0.002,3803.3,3802.8,2.62964086]
[1753888805643,0.002,3803.3,3802.9,2.78700318]
[1753888805870,0.002,3803.3,3803.2,0.1312]
[1753888807333,0.002,3803.3,3803.2,0.6267]
[1753888807769,0.002,3803.3,3803.2,0.1312]
[1753888807974,0.002,3803.3,3803.2,3.84725412]
[1753888808177,0.002,3803.3,3803.2,4.32334776]
[1753888808382,0.002,3803.3,3803.2,4.29705412]
[1753888808567,0.002,3803.3,3803.2,4.32334776]
[1753888808735,0.002,3803.3,3803.2,5.64624776]
[1753888809094,0.002,3803.7,3803.6,3.95198823]
[1753888809232,0.002,3803.7,3803.6,14.35286745]
[1753888809438,0.002,3803.7,3803.6,14.42956745]
[1753888810434,0.002,3803.7,3803.6,14.87936745]
[1753888810636,0.8738,3806.9,3804.9,0.7598]
[1753888810836,0.8338,3806.1,3805.0,4.1842812]
[1753888811059,0.24567916,3806.0,3805.1,3.72591625]
[1753888811270,0.9395,3805.8,3804.9,0.7598]
[1753888811581,0.9395,3805.7,3804.8,2.62824901]
[1753888811734,0.8338,3806.1,3804.8,2.62824901]
[1753888811735,0.9395,3805.6,3804.9,2.62813532]
[1753888811940,0.4477,3805.6,3805.1,2.62802916]
[1753888812146,0.5318,3805.9,3805.1,0.4955]
[1753888812480,1.11606,3805.9,3805.1,0.4955]
[1753888812647,1.11606,3805.9,3805.1,3.12352649]
[1753888812984,0.4877,3805.9,3805.3,2.6278568]
[1753888813156,0.4877,3805.9,3805.1,4.6525]
[1753888813157,0.04,3805.9,3805.1,4.6525]
[1753888813649,0.04,3805.9,3804.6,0.4955]
[1753888813650,0.9395,3805.8,3804.6,0.4955]
[1753888813858,0.9395,3805.7,3804.7,6.78527723]
[1753888814165,0.7655,3805.5,3804.7,4.157]
[1753888814485,0.7655,3805.5,3804.8,2.62825825]
[1753888814781,1.13670212,3805.4,3804.2,1.2813]
[1753888814985,0.9395,3805.3,3804.3,2.62855014]
[1753888815139,0.9395,3805.2,3804.4,4.156]
[1753888815339,0.9395,3805.1,3804.4,4.156]
[1753888815548,0.9395,3805.1,3804.1,2.6287312]
[1753888815549,0.4918,3805.0,3804.0,2.62878366]
[1753888815748,0.4918,3805.0,3804.1,2.62873881]
[1753888816037,0.4918,3805.0,3804.0,1.25735873]
[1753888816038,0.4918,3805.0,3804.2,2.62866123]
[1753888816242,0.4918,3805.0,3804.1,2.62873231]
[1753888816444,0.7655,3804.9,3804.0,1.25735873]
[1753888816758,0.9117,3804.8,3803.9,7.28036814]
[1753888816976,0.7655,3804.9,3803.9,7.28036814]
[1753888816977,0.49970212,3804.7,3803.9,4.156]
[1753888817142,0.9117,3804.7,3803.9,4.156]
[1753888817884,0.7655,3804.9,3803.6,0.65811613]
[1753888818095,0.9117,3804.6,3803.8,2.6289294]
[1753888818445,0.9117,3804.6,3803.8,3.2093462]
[1753888818785,0.9117,3804.6,3803.8,0.58041652]
[1753888818957,0.9117,3804.6,3803.8,3.20935849]
[1753888819359,0.9117,3804.6,3803.9,2.62887934]
[1753888819560,0.9117,3804.6,3803.8,0.58041652]
[1753888819884,0.9117,3804.6,3803.9,0.43502339]
[1753888820245,0.9117,3804.6,3803.8,0.58041652]
[1753888820461,0.7975,3804.4,3803.4,2.62921382]
[1753888820763,0.9117,3804.3,3804.0,0.1312]
[1753888821288,0.9117,3804.2,3804.0,0.1312]
[1753888821675,0.7975,3804.4,3804.0,0.1312]
[1753888821847,0.9117,3804.1,3804.0,0.1312]
[1753888822186,0.9117,3804.1,3803.9,0.1312]
[1753888822683,0.9117,3804.0,3803.1,3.15210779]
[1753888822987,0.9117,3804.0,3803.8,0.1312]
[1753888823412,0.7975,3804.4,3803.8,0.1312]
[1753888823571,0.473,3804.2,3803.8,0.1312]
[1753888823771,0.49970212,3804.2,3803.8,0.1312]
[1753888824095,1.2395,3804.1,3803.1,0.5227]
[1753888824293,0.93840212,3804.0,3803.7,0.1312]
[1753888824497,0.93840212,3804.0,3803.1,0.04]
[1753888824663,1.0429,3803.9,3803.4,0.1312]
[1753888824862,0.813,3803.8,3803.4,0.1312]